Cogmind - Beta 16 @@@ ROGUE MODE // 2026.01.17 @ 18:45:35 Player: DreamCore Result: Destroyed by G-47 Trooper with Particle Gun Performance ------------- Evolutions (2) 1000 Regions Visited (4) 800 Robots Destroyed (74) 370 Value Destroyed (2032) 2032 Prototype IDs (0) 0 Alien Tech Used (0) 0 Bonus (0) 0 TOTAL SCORE: 4202 Bonus ------- None Cogmind --------- Core Integrity 0/550 Matter 280/300 Energy 140/160 System Corruption 12% Temperature Cool (9) Movement Walking (260) Ox2 Location -8/Storage Parts ------- > --- POWER (1) -------- Light Nuclear Core > --- PROPULSION (2) --- Armored Treads Improved Aluminum Leg > --- UTILITY (6) ------ Improved Heat Sink Advanced Heat Sink Large Storage Unit Signal Interpreter Terrain Scan Processor Improved Terrain Scan Processor > --- WEAPON (2) ------- Particle Gun Katana > --- INVENTORY (15) --- Light Nuclear Core Aluminum Leg Improved Heat Sink Improved Heat Sink Improved Heat Sink Structural Scanner Hardened Medium Armor Plating Heavy Particle Gun Beam Cannon Missile Launcher Peak State ------------ > --- POWER ------------ Light Angular Momentum Engine > --- PROPULSION ------- Armored Treads Armored Treads > --- UTILITY ---------- Improved Heat Sink Advanced Heat Sink Large Storage Unit Signal Interpreter Terrain Scan Processor Improved Terrain Scan Processor > --- WEAPON ----------- Heavy Particle Cannon Katana > --- INVENTORY -------- Light Nuclear Core Improved Heat Sink Improved Heat Sink Structural Scanner Hardened Medium Armor Plating Particle Gun Heavy Particle Gun Beam Cannon Missile Launcher Mining Laser [Rating: 34] Favorites ----------- Power Ion Engine Engine Ion Engine Power Core Light Nuclear Core Propulsion Light Treads Treads Light Treads Leg Aluminum Leg Utility Large Storage Unit Device Improved Terrain Scanner Storage Large Storage Unit Processor Signal Interpreter Protection Weapon Shielding Weapon Medium Laser Energy Gun Medium Laser Energy Cannon Beam Cannon Ballistic Gun Assault Rifle Launcher Mini Grenade Launcher Special Weapon Mining Laser Slashing Weapon Katana Build | -11 -10 -9 -8 -8 ------- Run | Yrd Mat Mat Mat Sto Slots Evolved 4 | . . 2 2 . Power . | . . . . . Propulsion . | . . . . . Utility 4 | . . 2 2 . Weapon . | . . . . . Parts Attached 51 | . 9 17 10 15 Power 7 | . . 2 1 4 Engine 5 | . . 2 1 2 Core 2 | . . . . 2 Reactor . | . . . . . Propulsion 14 | . 2 5 2 5 Treads 13 | . 2 5 2 4 Leg 1 | . . . . 1 Wheel . | . . . . . Hover . | . . . . . Flight . | . . . . . Utility 14 | . 2 7 3 2 Device 7 | . . 3 2 2 Storage 1 | . 1 . . . Processor 4 | . 1 2 1 . Hackware . | . . . . . Protection 2 | . . 2 . . Artifact . | . . . . . Weapon 16 | . 5 3 4 4 Energy Gun 6 | . 2 1 2 1 Energy Cannon 3 | . 2 1 . . Ballistic Gun 2 | . . . 1 1 Ballistic Cannon . | . . . . . Launcher 3 | . 1 1 . 1 Special Weapon 1 | . . . 1 . Impact Weapon . | . . . . . Slashing Weapon 1 | . . . . 1 Piercing Weapon . | . . . . . Special Melee Weapon . | . . . . . Unidentified Prototypes . | . . . . . Parts Lost 21 | . . 1 6 14 Power 5 | . . . 1 4 Propulsion 5 | . . . 1 4 Utility 2 | . . . 1 1 Weapon 9 | . . 1 3 5 Highest Loss Streak 6 | . . 1 3 6 To Critical Strikes 1 | . . . . 1 Average Backups 12 | . 9 13 14 12 Power 1 | . 1 . 1 1 Propulsion 4 | . 4 4 5 2 Utility 2 | . . 2 2 4 Weapon 4 | . 4 5 5 4 Tool/Special . | . . . . . Unused Backups 18 | . 2 7 3 6 Power 3 | . . 2 . 1 Propulsion 8 | . 2 3 3 . Utility 4 | . . 1 . 3 Weapon 3 | . . 1 . 2 Tool/Special . | . . . . . Average Slot Usage (%) 97 | . 96 97 99 93 Engine 10 | . 14 11 9 4 Treads 22 | . 27 22 18 17 Device 9 | . . 10 18 17 Storage 11 | . 14 11 9 9 Processor 18 | . 10 18 26 27 Protection 1 | . . 3 . . Energy Gun 13 | . 15 15 12 4 Energy Cannon 4 | . 3 5 4 5 Ballistic Gun 2 | . 9 . . 1 Peak Build Rating 34 | . 8 17 27 34 Average Rating 15 | . 7 12 24 27 On Entrance 12 | 6 6 8 17 27 Avg Prop Armor Cover (%) . | . . . . . Naked Turns . | . . . . . Heaviest Build 36 | 14 31 36 35 36 Greatest Support 46 | 20 40 46 46 43 Greatest Overweight (x) 1 | . . . . 1 Average Overweight (x) . | . . . . . Largest Inventory Capacity 15 | . 15 15 15 15 Average Capacity 14 | . 14 15 15 15 Most Carried 15 | . 13 15 15 15 Average Carried 12 | . 9 13 14 12 Final Capacity 15 | 8 15 15 15 15 Final Carried 15 | 6 13 14 15 10 Class Distribution -------------------- 65% | Mutant 25% | Skirmisher 5% | Scavenger-Mutant 3% | Scavenger-Skirmisher Dominant Class ---------------- Mutant | -10/Materials Skirmisher | -9/Materials Mutant | -8/Materials Mutant | -8/Storage Resources | -11 -10 -9 -8 -8 ----------- Run | Yrd Mat Mat Mat Sto Matter Collected 1091 | 200 116 268 298 209 Remotely . | . . . . . Salvage Created 2545 | . 305 695 904 641 Parts 157 | . 27 50 45 35 Haulers Intercepted 4 | . 1 2 1 . Recyclers Shooed 2 | . . . 2 . Parts Field Recycled . | . . . . . Retrieved Matter . | . . . . . Parts Self-Destructed . | . . . . . Prevented . | . . . . . Parts Restored . | . . . . . Kills | -11 -10 -9 -8 -8 ------- Run | Yrd Mat Mat Mat Sto Combat Hostiles Destroyed 52 | . 9 16 13 14 Melee 7 | . . . . 7 Guns 19 | . 5 4 6 4 Cannons 10 | . 1 4 4 1 AOE 14 | . 3 7 2 2 Classes Destroyed 13 | . 6 2 3 2 Worker 5 | . 1 1 3 . Builder 4 | . . 3 1 . Hauler 4 | . 1 2 1 . Recycler 1 | . . . 1 . Operator 2 | . 1 . . 1 Watcher 6 | . 2 2 1 1 Swarmer 15 | . 6 7 . 2 Grunt 24 | . 3 4 9 8 Brawler 1 | . . . 1 . Duelist 1 | . . . . 1 Protector 1 | . . . . 1 Sentry 9 | . . 5 2 2 Hunter 1 | . . . 1 . Best Kill Streak 7 | . 3 6 7 4 Combat Bots Only 4 | . 3 4 4 4 Max Kills in Single Turn 3 | . 3 3 3 1 Gunslinging . | . . . . . Exploded 3 | . 3 3 1 1 Melee 1 | . . . . 1 Uniques/NPCs Destroyed . | . . . . . Combat | -11 -10 -9 -8 -8 -------- Run | Yrd Mat Mat Mat Sto Hostile Shots Fired 364 | . 27 58 101 178 Missed 94 | . 9 14 30 41 Hits 270 | . 18 44 71 137 Melee 16 | . . . 6 10 Projectile 254 | . 18 44 65 127 Critical Strikes 14 | . 1 3 4 6 Damage Taken 4119 | . 202 563 1167 2187 Core 677 | . 11 106 214 346 Absorbed by Shields . | . . . . . Redirected to Shielding 6 | . . 6 . . Core Remaining (%) 89 | 100 95 73 . . Volleys Fired 246 | . 42 88 60 56 Largest 2 | . 2 2 2 2 Hottest 138 | . 110 115 105 138 Shots Fired 407 | . 63 138 115 91 Gun 302 | . 60 109 83 50 Cannon 84 | . 2 24 26 32 Launcher 15 | . 1 5 3 6 Special 6 | . . . 3 3 Kinetic 48 | . 19 . 13 16 Thermal 213 | . 42 57 45 69 Explosive 9 | . 1 5 3 . Electromagnetic 137 | . 1 76 54 6 Robot Hit Streak 15 | . 9 15 11 9 Robot Miss Streak 4 | . 2 3 4 3 Penetration Max . | . . . . . Secondary Targets 1 | . . . 1 . Max Gunslinging Chain 1 | . . . 1 . Shots Hit Robots 232 | . 29 63 74 66 Core Hits 112 | . 19 31 31 31 Critical Kills 1 | . . . 1 . Critical Parts Destroyed . | . . . . . Critical Strikes 14 | . 1 3 4 6 Burn 7 | . 1 3 1 2 Meltdown 1 | . . . 1 . Corrupt 2 | . . . 2 . Sever 4 | . . . . 4 Melee Attacks 35 | . . . . 35 Impact . | . . . . . Slashing 35 | . . . . 35 Piercing . | . . . . . Sneak Attacks 1 | . . . . 1 Combat Hostiles . | . . . . . Follow-up Attacks . | . . . . . Damage Inflicted 5004 | . 530 1362 1410 1702 Guns 2381 | . 355 689 870 467 Cannons 827 | . 37 194 368 228 Explosions 1023 | . 116 466 168 273 Melee 662 | . . . . 662 Ramming 39 | . 22 13 4 . Kinetic 537 | . 185 . 146 206 Thermal 1921 | . 207 626 527 561 Explosive 632 | . 116 348 168 . Electromagnetic 1213 | . . 375 565 273 Impact . | . . . . . Slashing 662 | . . . . 662 Piercing . | . . . . . Highest Corruption 12 | . 4 2 8 12 Average Corruption 6 | . 3 2 7 9 Corruption Purged . | . . . . . Corruption Blocked . | . . . . . Effects 54 | . 11 3 19 21 Message Errors 16 | . 1 2 6 7 Matter Fused 8 | . 1 1 4 2 Heat Flow Errors 4 | . 4 . . . Energy Discharges 4 | . 1 . . 3 Parts Rejected 1 | . . . . 1 Data Loss (minor) 5 | . 3 . 1 1 Data Loss (major) 4 | . . . 1 3 Misfires 3 | . 1 . 2 . Alerts 3 | . . . 2 1 Weapon Failures 6 | . . . 3 3 Overload Shots . | . . . . . Overflow Damage 35 | . . 28 . 7 Projectiles . | . . . . . Explosions 28 | . . 28 . . Melee 7 | . . . . 7 Knockbacks . | . . . . . Impact . | . . . . . Kinetic . | . . . . . Secondary . | . . . . . Self-Inflicted Damage 93 | . 29 20 10 34 Shots 6 | . 1 1 1 3 Rammed 8 | . 4 3 1 . Targets Rammed 9 | . 4 4 1 . Kicked . | . . . . . Crushed 1 | . . 1 . . Highest Temperature 300 | . 276 300 273 66 Average Temperature 78 | . 68 89 128 21 Received Heat Transfer 1611 | . 78 228 414 891 Effects 6 | . . 3 3 . Energy Bleed 2 | . . 1 1 . Interference 4 | . . 2 2 . Siege Activations . | . . . . . Martial Activations . | . . . . . Shielding Activations . | . . . . . Robots Disrupted . | . . . . . Combat Hostiles . | . . . . . Robots Corrupted 1 | . . . 1 . Combat Hostiles 1 | . . . 1 . Parts Fried 6 | . . 2 3 1 Impact Corruptions . | . . . . . Robots Melted 2 | . . 1 1 . Combat Hostiles 1 | . . 1 . . Parts Melted 10 | . 1 3 5 1 Heat Transferred 4870 | . 629 1630 1332 1279 Parts Sabotaged . | . . . . . Parts Stolen . | . . . . . Parts Stripped . | . . . . . Power Chain Reactions 2 | . . 2 . . Alert | -11 -10 -9 -8 -8 ------- Run | Yrd Mat Mat Mat Sto Maximum Alert Level 1 | . . 1 . . Low Security (%) 94 | . 100 85 100 100 Level 1 5 | . . 14 . . Level 2 . | . . . . . Level 3 . | . . . . . Level 4 . | . . . . . Level 5 . | . . . . . High Security . | . . . . . Max Security . | . . . . . Peak Influence 222 | . 80 222 152 101 Initial 46 | . . 7 46 43 Average 68 | . 23 114 61 44 Influence Increases 1641 | . 290 550 383 418 Destroy 0b10 Robot/C 1020 | . 180 320 260 260 Destroy 0b10 Robot/NC 115 | . 25 40 35 15 Destroy Leader 270 | . 46 88 54 82 Successful Hack 32 | . 28 2 2 . Disable Machine 90 | . . 45 . 45 Destroy Structure 84 | . 11 40 32 1 Lose Combat Pursuer 30 | . . 15 . 15 Influence Decreases 1550 | . 273 455 391 431 Entered New Map 137 | . . 10 66 61 Time Decay 1169 | . 273 435 267 194 Lost Part 208 | . . 10 58 140 Lost Ally 36 | . . . . 36 Squads Dispatched 10 | . 1 2 1 6 Investigation . | . . . . . Extermination . | . . . . . Reinforcement 5 | . 1 2 1 1 Assault 2 | . . . . 2 Garrison 3 | . . . . 3 Intercept . | . . . . . Searches Triggered . | . . . . . Construction Impeded 1 | . . 1 . . Haulers Reinforced . | . . . . . Active Scanning Responses . | . . . . . Cargo Convoy Interrupts . | . . . . . Stealth | -11 -10 -9 -8 -8 --------- Run | Yrd Mat Mat Mat Sto Distress Signals 2 | . . . 2 . Communications Jammed . | . . . . . Distress Signals . | . . . . . Times Spotted 81 | . 16 21 20 24 Peak Tracking Total 9 | . 5 4 6 9 Tactical Retreats 2 | . . 1 . 1 Traps | -11 -10 -9 -8 -8 ------- Run | Yrd Mat Mat Mat Sto Traps Triggered 3 | . 2 1 . . Indirectly . | . . . . . Trap Hack Attempts . | . . . . . Triggered . | . . . . . Disarmed . | . . . . . Reprogrammed . | . . . . . Reused . | . . . . . Traps Extracted . | . . . . . Installed . | . . . . . Triggered . | . . . . . Machines | -11 -10 -9 -8 -8 ---------- Run | Yrd Mat Mat Mat Sto Machines Disabled 6 | . . 3 . 3 Max in Single Turn 1 | . . 1 . 1 Machines Repaired . | . . . . . Machines Dismantled . | . . . . . Machines Sabotaged . | . . . . . Overloaded Fab Kills . | . . . . . Hacking | -11 -10 -9 -8 -8 --------- Run | Yrd Mat Mat Mat Sto Machines Accessed 12 | . 7 3 2 . Terminals 7 | . 6 1 . . Fabricators . | . . . . . Repair Stations 1 | . . . 1 . Recycling Units 2 | . 1 1 . . Scanalyzers 2 | . . 1 1 . Garrison Access . | . . . . . Total Hacks 37 | . 21 11 5 . Successful 24 | . 12 10 2 . Failed 12 | . 9 1 2 . Catastrophic 1 | . 1 . . . Database Lockouts 1 | . . . 1 . Manual 23 | . 19 3 1 . Terminals 21 | . 19 2 . . Fabricators . | . . . . . Repair Stations 3 | . . . 3 . Recycling Units 4 | . 2 2 . . Scanalyzers 9 | . . 7 2 . Garrison Access . | . . . . . Terminal Hacks 4 | . 4 . . . Robot Analysis 1 | . 1 . . . Terminal Index 1 | . 1 . . . Locate Traps 1 | . 1 . . . Surveillance Status 1 | . 1 . . . Fabricator Hacks . | . . . . . Repair Station Hacks 1 | . . . 1 . Scan Component 1 | . . . 1 . Recycling Unit Hacks 2 | . 1 1 . . Report Inventory 2 | . 1 1 . . Scanalyzer 8 | . . 7 1 . Retrieve Study 8 | . . 7 1 . Garrison Access Hacks . | . . . . . Unauthorized Hacks 9 | . 7 2 . . Terminals 7 | . 6 1 . . Botnet 7 | . 6 1 . . Fabricators . | . . . . . Repair Stations . | . . . . . Recycling Units 2 | . 1 1 . . Reject 2 | . 1 1 . . Scanalyzers . | . . . . . Garrison Access . | . . . . . Data Cores Recovered . | . . . . . Used . | . . . . . Hacking Detections 10 | . 6 3 1 . Full Trace Events . | . . . . . Feedback Events . | . . . . . Feedback Blocked . | . . . . . Robot Schematics Acquired . | . . . . . Robots Built . | . . . . . Authchips . | . . . . . Time . | . . . . . Total Robot Build Rating . | . . . . . Part Schematics Acquired . | . . . . . Parts Built . | . . . . . Authchips . | . . . . . Time . | . . . . . Total Part Build Rating . | . . . . . Part Studies Acquired 8 | . . 7 1 . Parts Repaired . | . . . . . Time . | . . . . . Parts Recycled . | . . . . . Recycled Matter . | . . . . . Retrieved Matter . | . . . . . Retrieved Components . | . . . . . Parts Scanalyzed . | . . . . . Part Schematics Acquired . | . . . . . Parts Damaged . | . . . . . Bothacking | -11 -10 -9 -8 -8 ------------ Run | Yrd Mat Mat Mat Sto Used RIF Installer . | . . . . . Robots Hacked . | . . . . . Non-combat . | . . . . . Combat . | . . . . . Robot Hacks Applied . | . . . . . Relay Couplers Released . | . . . . . Fabnet Peak Effective % . | . . . . . Robots Rewired . | . . . . . Allies Hacked . | . . . . . Hacks Repelled . | . . . . . Allies | -11 -10 -9 -8 -8 -------- Run | Yrd Mat Mat Mat Sto Total Allies 2 | . . . . 2 Largest Group 2 | . . . . 2 Highest-Rated Group 62 | . . . . 62 Highest-Rated Ally 31 | . . . . 31 Total Orders . | . . . . . Ally Attacks 6 | . . . . 6 Total Damage 86 | . . . . 86 Kills . | . . . . . Allies Corrupted . | . . . . . Allies Melted . | . . . . . Intel | -11 -10 -9 -8 -8 ------- Run | Yrd Mat Mat Mat Sto Active Infowar (turns) 3174 | . 799 1374 708 293 Sensors 1006 | . . 954 52 . Terrain 1248 | . . 247 708 293 Structural 91 | . . 71 20 . Seismic 186 | . . . 186 . T.N.C. 1926 | . 799 1127 . . Robot Analysis Total 1 | . 1 . . . Derelict Logs Recovered . | . . . . . Drone Launches . | . . . . . Drone Recoveries . | . . . . . Exploration | -11 -10 -9 -8 -8 ------------- Run | Yrd Mat Mat Mat Sto Turns Passed 3544 | . 1012 1374 708 450 Spaces Moved 1451 | 1 543 574 251 82 Core . | . . . . . Treads 1444 | . 537 574 251 82 Legs 7 | 1 6 . . . Wheels . | . . . . . Hover . | . . . . . Flight . | . . . . . Fastest Speed 120 | 120 120 160 160 165 Average Speed 161 | 120 159 160 163 173 Slowest Speed 210 | 120 160 160 165 210 Overloaded Moves . | . . . . . Propulsion Burnouts . | . . . . . Robots Hopped . | . . . . . Potential Cave-ins . | . . . . . Cave-ins Triggered . | . . . . . Exploration Rate (%) 25 | 2 57 44 18 8 Regions Visited 4 Branch Regions 1 Pre-discovered Areas . | . . . . . Known Exits Taken 2 | . . 1 1 . Unknown Exits Taken 2 | 1 1 . . . Scrap Searched . | . . . . . Spaces Dug 3 | . . . 3 . Terrain Destroyed 89 | . 10 43 36 . Melee . | . . . . . Projectile 3 | . . . 3 . AOE 86 | . 10 43 33 . Terrain Rammed . | . . . . . Walls Destroyed . | . . . . . Machines Disabled . | . . . . . Actions | -11 -10 -9 -8 -8 --------- Run | Yrd Mat Mat Mat Sto Total 2183 | . 625 896 426 236 Wait 291 | . 10 177 72 32 Move 1447 | . 542 573 250 82 Hop . | . . . . . Pick Up 53 | . 12 15 15 11 Fast Attach 1 | . . 1 . . Attach 32 | . 4 3 10 15 Detach 2 | . 2 . . . Swap 37 | . 5 17 11 4 Drop 30 | . 4 18 7 1 Fire 246 | . 42 88 60 56 Melee 35 | . . . . 35 Ram . | . . . . . Kick . | . . . . . Crush 9 | . 4 4 1 . Escape Stasis . | . . . . . Rewire . | . . . . . Trap . | . . . . . Miscellaneous . | . . . . . Route ------- -11/Scrapyard -10/Materials (discovered 3 exits: *Mat / [*Min] / [*Sub]) -9/Materials (discovered 2 exits: *Mat / *Min) -8/Materials -8/Storage History --------- Turn | Location | Event 1 | -11/Scrapyard | Discovered new exit (range 0) 1 | -11/Scrapyard | Entered Materials 251 | -10/Materials | Discovered new exit (range 15) 311 | -10/Materials | Build established: Mutant 830 | -10/Materials | Discovered new exit (range 6) 978 | -10/Materials | Discovered new exit (range 3) 1001 | -10/Materials | Derelicts attacked the area 1013 | -10/Materials | Entered another Materials area 1013 | -9/Materials | Evolved 2 slots: Utility x2 1504 | -9/Materials | Discovered new exit (range 15) 1528 | -9/Materials | Identified exit to Mines 1620 | -9/Materials | Build established: Skirmisher 2268 | -9/Materials | Discovered new exit (range 5) 2273 | -9/Materials | Identified exit to Materials 2387 | -9/Materials | Entered another Materials area 2387 | -8/Materials | Evolved 2 slots: Utility x2 2489 | -8/Materials | Discovered new exit (range 16) 2753 | -8/Materials | Build established: Mutant 2790 | -8/Materials | Lost 3 parts (3w) 2911 | -8/Materials | Central database locked down 2963 | -8/Materials | Identified exit to Storage 3095 | -8/Materials | Entered Storage 3226 | -8/Storage | Met a pair of Derelict thieves 3284 | -8/Storage | Core integrity fell below 50% 3295 | -8/Storage | Garrison activated, responded to threat 3354 | -8/Storage | System corruption reached 10% 3384 | -8/Storage | Lost 6 parts (2p1n3w) 3420 | -8/Storage | Core integrity fell below 20% 3545 | -8/Storage | Destroyed by G-47 Trooper with Particle Gun Last Messages --------------- 03461_ S-10 Pest destroyed. 03473_ Mining Laser+ destroyed. 03476_ Y-45 Defender destroyed. 03480_ S-10 Pest destroyed. 03481_ AT0XO3%9YDDR#XX6CN&#INA 03484_ I-25 Savior destroyed. 03487_ Acquired 30 matter. 03490_ Acquired Imp. Heat Sink. 03498_ PAZFOATF=&5PD&5,3S &,MBO E9&IQDE5 03498_ Acquired Lgt. Nuclear Core. 03501_ Acquired Imp. Aluminum Leg. 03508_ Acquired Aluminum Leg. 03517_ Lgt. Angular Momentum Engine destroyed. 03520_ System corrupted: Energy discharge (-27). 03526_ Y-45 Defender destroyed. 03536_ System corrupted: Particle Gun failed to cycle. 03540_ G-47 Trooper destroyed. 03541_ Critical hit (Burn: +37). 03542_ G-47 Trooper Aluminum Leg severed. 03543_ Arm. Treads+ destroyed. Map ----- +----------------------------------------------------+ | ????????????????????????????????? | | ????????????????????????????????? | | ????????????????????????????????? | | ????????????????????????????????? | | ????????????????????????????????? | | ??????????????#?????????????????? | | ??????????? ?#???##?????????????? | | ?????? # #########??????????? | | ????? #######?##### ? ????????? | | ???? ? + #### ????????? | | ???# # """ #### ""? ???????? | | #### # """ #### """ ""?????? | | ##?# + """ #### """?""?????? | | #### #? ####? ? ????? | | ###T # ?"" #### ? ?????? | | #### # """ ###? ? ???? | | #""" #? """ ######## ###?#??? | | #"G # ###########?#???? | | #""" ##############?########??? | | #### #################?#####??? | | ?### #######################??? | | #### !####=] ]##########?###?#?? | | #### =%##*#=]]=############?##??? | | ####[= #[!"% = ################?? | | ####!%[#!%%= %[###############??? | | ####!%%#@*"==[=##############???? | | ####%%*g%=#%![[###############??? | | ####===#############?####?#?#???? | | ####**!#####################????? | | ###T=! ##############?#######???? | | #### # ############????? | | #### =# """"" ###########?????? | | #### %% "" ##########??????? | | #### #= """"" ###########?????? | | #### # #########???????? | | ##?# # """"" ##########??????? | | #### # "" ######?#????????? | | #### # """"" ########????????? | | ######## #######?????????? | | ###################?#?#?????????? | | #?##?###?##########?###?#???????? | | #######?###########?#???????????? | | ##############?######???????????? | | ##?######?############?#????????? | | ##########??#######?##??????????? | | ########?###?#?###????#?????????? | | | | | | | | | +----------------------------------------------------+ Best States ------------- Heat Dissipation 64 Energy Generation 18 Energy Capacity 265 Matter Stores 300 Matter Capacity 300 Sight Range 16 Robot Scan Range 14 Terrain Scan Range 16 Terrain Scan Density 185 Armor Coverage 150 Weapon Shielding 33 Evasion (%) 40 Recoil Reduction 2 Item Schematics ----------------- None Robot Schematics ------------------ None Fabricated ------------ Nothing Repaired ---------- Nothing Studied --------- Lgt. Treads | -9/Materials | Hacked EM Pulse Gun | -9/Materials | Hacked Mining Laser | -9/Materials | Hacked Ion Engine | -9/Materials | Hacked Beam Cannon | -9/Materials | Hacked Assault Rifle | -9/Materials | Hacked Med. Laser | -9/Materials | Hacked Arm. Treads | -8/Materials | Hacked Alien Tech Used ----------------- None Achievements -------------- None Challenges ------------ None Game ------ Seed CryofiberAntisysLance Manual? 0 Play Time 00:55:05 Cumulative 56.8 hours Start 2026.01.17 @ 17:48:41 End 2026.01.17 @ 18:45:35 Sessions 1 Manual Loads 0 Difficulty Rogue Special Mode None Game No. 67 Rogue 67 Adventurer 0 Explorer 0 Win Type - Total 1 Types 1/0/0/0/0/0/0/0/0/0 Lore% 25 Gallery% 33 Achievement% 23 Wizard Run 0 Options --------- Layout 0 ASCII 0 Keyboard 0 Movement Mouse Keybinds 0 Fullscreen 0 Font 16/SmallcapsGlow Map View 88x55 Zoom Use 0% Tactical HUD 1 Map Filters NONE Filters NONE Steam 1 RUN: 780c3806-0492-4ef5-8f33-59f22a05e1b8